bitfinex/quotes_ETHUSD_20240715
["timestamp","ask_amount","ask_price","bid_price","bid_amount"]
[1721022673340,0.97341911,3349.9,3349.3,0.06673561]
[1721022673770,1.03371781,3349.8,3349.3,0.06673561]
[1721022674065,0.97341911,3349.9,3349.3,0.06673561]
[1721022674066,3.66009911,3349.9,3349.3,0.06673561]
[1721022674275,8.32152584,3349.8,3349.2,0.31237105]
[1721022674444,1.35884848,3349.7,3349.4,0.06671327]
[1721022674651,6.96271311,3349.8,3349.2,0.31237105]
[1721022674848,1.3588917,3349.7,3349.5,0.06668471]
[1721022675047,6.96271311,3349.8,3349.2,0.31237105]
[1721022675271,2.59993003,3349.7,3349.6,0.06665615]
[1721022675587,2.59993003,3349.7,3349.2,0.31237105]
[1721022675588,6.14993003,3349.7,3349.2,0.31237105]
[1721022675788,1.35888106,3349.6,3349.2,0.31237105]
[1721022675963,1.35893823,3349.5,3349.2,0.31237105]
[1721022676164,3.0,3349.5,3349.2,0.31237105]
[1721022676494,0.67518583,3349.4,3349.2,0.31237105]
[1721022676853,0.67518583,3349.4,3348.7,2.6876]
[1721022677060,3.0,3349.6,3349.3,0.06677444]
[1721022677276,1.35899765,3349.5,3348.9,0.31241474]
[1721022677467,3.0,3349.6,3349.4,0.06682046]
[1721022677749,1.03382144,3349.5,3348.9,0.31241474]
[1721022677976,4.18735745,3349.7,3348.9,0.31241474]
[1721022678190,4.252686,3349.6,3349.0,0.06693471]
[1721022678353,3.0,3349.5,3348.9,2.99982474]
[1721022682965,3.0,3349.5,3348.9,0.31241474]
[1721022683289,0.31266766,3349.4,3348.9,0.31241474]
[1721022683494,0.31266766,3349.4,3349.0,0.06693316]
[1721022683689,0.31266766,3349.4,3348.9,0.31241474]
[1721022683904,0.31266766,3349.4,3349.1,0.06690459]
[1721022684092,0.31266766,3349.4,3348.9,0.31241474]
[1721022684261,0.31266766,3349.4,3349.2,0.06687603]
[1721022684457,0.31266766,3349.4,3348.9,2.99985474]
[1721022684660,0.31266766,3349.4,3349.3,0.06685213]
[1721022684884,0.31266766,3349.4,3348.9,2.99985474]
[1721022685085,0.31266766,3349.4,3349.3,0.06685213]
[1721022685287,0.31266766,3349.4,3348.9,2.99985474]
[1721022685496,0.31266766,3349.4,3349.3,0.06685213]
[1721022685677,0.31266766,3349.4,3348.9,0.31241474]
[1721022686306,3.4063103,3349.3,3349.0,0.06693627]
[1721022686620,2.3724,3349.3,3348.9,0.31241474]
[1721022686920,2.3724,3348.9,3347.9,2.68825]
[1721022687067,7.6899,3348.9,3347.9,2.68825]
[1721022687413,1.58405901,3348.8,3348.0,0.46066981]
[1721022687567,1.03405901,3348.7,3348.0,0.46066981]
[1721022687770,3.55,3348.8,3348.0,0.39343692]
[1721022687970,2.15806053,3348.7,3348.0,0.39343692]
[1721022688182,1.12399,3348.7,3348.0,0.39343692]
[1721022688364,1.08781618,3348.6,3348.0,0.39343692]
[1721022688568,1.08781618,3348.6,3348.1,0.06510459]
[1721022688569,0.05369152,3348.5,3348.1,0.06510459]
[1721022688811,1.08783677,3348.5,3348.1,0.06510459]
[1721022689011,1.82409693,3348.4,3348.1,0.06510459]
[1721022689316,2.68801,3348.2,3348.0,0.31251261]
[1721022689505,6.71783677,3348.1,3348.0,0.31251261]
[1721022689803,6.66414525,3348.1,3347.1,2.68887]
[1721022690003,1.08783677,3348.0,3347.7,0.31238947]
[1721022690238,0.94058468,3347.9,3347.1,2.68887]
[1721022690410,0.05369152,3347.8,3347.4,0.31239324]
[1721022691650,3.94058468,3347.9,3347.4,0.31239324]
[1721022691856,3.05369152,3347.9,3347.4,0.31239324]
[1721022692000,3.0,3347.8,3347.4,0.31239324]
[1721022692198,3.0,3348.0,3347.4,0.31239324]
[1721022692461,3.0,3348.1,3347.4,0.31239324]
[1721022692817,5.68809,3348.1,3347.4,0.31239324]
[1721022693141,6.90863932,3348.1,3347.4,0.31239324]
[1721022693352,2.4359,3348.3,3347.4,0.31239324]
[1721022693538,7.59035,3348.9,3347.9,2.68825]
[1721022694062,2.68753,3348.8,3347.7,2.68837]
[1721022694232,1.5761958,3348.7,3347.7,2.68837]
[1721022694559,2.68769,3348.6,3347.4,3.00102324]
[1721022694755,3.05369152,3348.5,3347.6,0.13171585]
[1721022694963,3.0,3348.5,3347.6,2.68843]
[1721022695260,3.0,3348.5,3347.7,2.68837]
[1721022695555,3.0,3348.7,3347.8,0.05973391]
[1721022695757,3.0,3348.8,3347.8,0.05973391]
[1721022695958,0.55,3348.7,3347.8,0.05973391]
[1721022696159,3.23761,3348.7,3347.5,2.68856]
[1721022696338,3.0,3348.6,3347.9,0.06532177]
[1721022696538,3.0,3348.6,3347.4,3.06077929]
[1721022696539,0.923761,3348.5,3347.5,0.13171979]
[1721022696835,3.0,3348.6,3347.6,0.06540753]
[1721022697160,3.0,3348.6,3347.7,2.6884]
[1721022697374,3.0,3348.6,3347.6,0.06540753]
[1721022697688,2.4896,3348.4,3347.7,0.06537894]
[1721022697829,0.05369152,3348.3,3347.5,0.13171979]
[1721022698024,0.05369152,3348.3,3347.8,0.06535035]
[1721022698223,0.05369152,3348.3,3347.4,0.31239324]
[1721022698224,0.78610615,3348.2,3347.4,3.00100324]
[1721022698534,1.09885564,3348.2,3347.9,0.06532177]
[1721022698728,0.05369152,3348.1,3347.4,3.00100324]
[1721022698933,1.09885564,3348.2,3348.0,0.06529318]
[1721022699151,1.09885564,3348.2,3347.4,0.31239324]
[1721022699444,0.66421472,3348.1,3347.5,0.06554183]
[1721022699651,3.66421472,3348.1,3347.5,0.06554183]
[1721022700435,3.78687564,3348.2,3347.5,0.06554183]
[1721022700436,0.31274949,3348.2,3347.5,0.06554183]
[1721022700638,0.31274949,3348.2,3347.8,2.68826]
[1721022700871,0.31274949,3348.2,3347.9,2.68823]
[1721022701159,0.31274949,3348.2,3347.9,2.75368701]
[1721022701361,0.31274949,3348.2,3348.1,2.68809]
[1721022701743,0.31274949,3348.2,3348.1,2.75348984]
[1721022703288,4.94724281,3349.0,3348.2,2.68798]
[1721022703490,5.25995137,3349.0,3348.2,2.68798]
[1721022703669,5.25995137,3349.0,3348.3,0.06534268]
[1721022703848,5.25995137,3349.0,3348.2,2.68798]
[1721022704050,5.25995137,3349.0,3348.4,0.0653141]
[1721022704244,5.25995137,3349.0,3348.2,2.68798]
[1721022704486,5.25995137,3349.0,3348.5,0.06528553]
[1721022704680,5.25995137,3349.0,3348.3,2.68787]
[1721022705384,5.25995137,3349.0,3347.6,3.00093072]
[1721022705385,2.68756,3348.8,3347.6,3.00093072]
[1721022705584,2.63,3348.6,3347.8,2.68833]
[1721022705787,2.63,3348.7,3347.8,2.68833]
[1721022705963,2.63,3348.7,3347.9,0.06545701]
[1721022706160,0.05369152,3348.6,3347.9,0.06545701]
[1721022706456,1.44371167,3348.6,3347.6,3.00098072]
[1721022706657,0.55,3348.5,3348.0,0.06542842]
[1721022706883,0.55,3348.5,3347.6,0.31252072]
[1721022707090,0.55,3348.5,3348.1,0.06539984]
[1721022707296,2.992,3348.6,3347.8,2.68827]
[1721022707487,4.97895,3348.9,3348.2,0.06537126]
[1721022707666,1.5840773,3348.8,3347.8,2.74800439]
[1721022707860,2.68761,3348.7,3348.3,0.06534268]
[1721022708093,2.68761,3348.7,3347.6,3.00096072]
[1721022708094,2.63,3348.6,3347.6,0.31252072]
[1721022708252,2.63,3348.6,3348.4,0.0653141]
[1721022708451,0.578761,3348.5,3347.7,2.68839]
[1721022708652,2.63,3348.6,3348.5,0.06528553]
[1721022708891,2.63,3348.6,3347.8,2.68833]
[1721022709072,2.63,3348.6,3348.5,0.06528553]
[1721022709277,2.63,3348.6,3347.6,3.00095072]
[1721022709483,4.63787944,3348.5,3347.6,0.31252072]
[1721022709783,3.41463794,3348.4,3347.6,0.31252072]
[1721022710199,5.0683,3348.2,3347.6,0.31252072]
[1721022710359,7.81007152,3348.2,3347.0,2.68892]
[1721022710554,3.0,3348.1,3347.1,2.68888]
[1721022710775,3.0,3348.1,3347.1,3.00141337]
[1721022711287,4.47079331,3348.1,3347.1,0.31253337]
[1721022711481,3.71452349,3348.0,3347.1,0.31253337]
[1721022711682,3.0,3347.9,3347.1,0.31253337]
[1721022712665,5.68826,3347.9,3347.1,0.31253337]
[1721022712966,5.68826,3347.9,3347.2,0.06559963]
[1721022713165,0.97935318,3347.8,3347.2,0.06559963]
[1721022715272,3.66768318,3347.8,3347.2,0.06559963]
[1721022715471,0.97935318,3347.8,3347.2,0.06559963]
[1721022715675,5.68825,3347.9,3347.2,0.06559963]
[1721022718408,5.68025,3347.9,3347.2,0.06559963]
[1721022718567,0.31278194,3347.8,3347.2,0.06559963]
[1721022719599,0.30478194,3347.8,3347.2,0.06559963]
[1721022720375,2.4059,3347.7,3347.2,0.06559963]
[1721022720972,0.05369152,3347.6,3347.2,0.06559963]
[1721022721395,0.05369152,3347.6,3347.1,0.31253337]
[1721022721904,0.05369152,3347.6,3347.2,0.06366946]
[1721022722101,1.43079587,3347.6,3347.1,0.31253337]
[1721022722312,1.43079587,3347.6,3345.7,4.87334178]
[1721022722313,2.411,3347.2,3346.3,2.68947]
[1721022722498,0.05369152,3347.1,3346.3,2.68947]
[1721022722681,0.05369152,3347.1,3346.5,0.31262611]
[1721022723305,0.04569152,3347.1,3346.5,0.31262611]
[1721022724405,2.68902,3347.0,3346.5,0.31262611]
[1721022726512,3.0,3346.9,3346.5,0.31262611]
[1721022726808,3.0,3346.9,3345.9,2.68985]
[1721022726978,3.04569152,3346.9,3346.2,0.31248744]
[1721022727311,0.57347115,3346.8,3346.2,0.31248744]
[1721022727610,0.04569152,3346.7,3346.2,0.31248744]
[1721022727983,0.04569152,3346.7,3346.3,0.06068636]
[1721022728315,2.4726,3346.6,3346.3,0.06068636]
[1721022728520,10.7919,3346.6,3346.2,0.31248744]
[1721022728719,5.4726,3346.6,3345.8,2.6899]
[1721022729017,5.4726,3346.6,3346.3,0.06068636]
[1721022729018,3.0,3346.5,3346.3,0.06068636]
[1721022729192,2.4726,3346.6,3346.2,0.31254507]
[1721022730179,2.4726,3346.6,3346.3,0.06083197]
[1721022732018,5.4726,3346.6,3346.3,0.06083197]
[1721022732420,5.4726,3346.6,3346.2,0.31254507]
[1721022732797,0.04569152,3346.5,3346.3,0.06083197]
[1721022733015,3.04569152,3346.5,3346.3,0.06083197]
[1721022733323,5.73507152,3346.5,3345.8,0.31254051]
[1721022733508,5.73507152,3346.5,3345.9,0.06113854]
[1721022734080,5.68938,3346.5,3345.9,0.06113854]
[1721022734818,6.04014743,3346.5,3345.9,0.06113854]
[1721022735686,6.08583895,3346.5,3345.9,0.06113854]
[1721022736026,6.04014743,3346.5,3345.9,0.06113854]
[1721022736639,2.68955,3346.3,3345.9,0.06113854]
[1721022736922,0.04569152,3346.2,3345.3,2.69031]
[1721022737092,0.04569152,3346.2,3345.4,0.37386933]
[1721022737424,2.3098,3346.1,3345.4,0.37386933]
[1721022737594,0.04569152,3346.0,3345.4,0.37386933]
[1721022738119,5.73547152,3346.0,3345.4,0.31256287]
[1721022738290,3.0,3346.0,3345.4,0.31256287]
[1721022738496,5.3098,3346.1,3345.5,0.06127783]
[1721022739102,3.0,3346.1,3345.5,0.06127783]
[1721022739304,3.0,3346.4,3345.5,0.06127783]
[1721022739508,4.70705402,3346.4,3345.5,0.06127783]
[1721022739723,3.0,3346.4,3345.6,2.69002]
[1721022740038,5.368,3346.5,3345.7,0.06122058]
[1721022740196,5.368,3346.5,3345.7,2.75123058]
[1721022741194,3.0,3346.5,3345.7,2.75123058]
[1721022741522,3.0,3346.5,3345.9,2.68979]
[1721022741692,3.0,3346.5,3346.0,0.06113472]
[1721022743946,4.94724281,3346.9,3346.3,2.68951]
[1721022744500,4.94724281,3346.9,3346.1,5.08276]
[1721022745027,3.0,3346.8,3346.2,0.06115805]
[1721022745817,3.0,3346.8,3346.0,2.68976]
[1721022746016,3.0,3346.8,3346.3,0.06112944]
[1721022746302,3.0,3346.8,3346.1,2.68967]
[1721022746719,3.0,3346.8,3346.2,0.06115805]
[1721022748525,5.18212,3346.7,3346.2,0.06115805]
[1721022748851,5.18212,3346.7,3345.7,3.00253101]
[1721022749054,5.18212,3346.7,3345.8,0.05977009]
[1721022749220,1.0346979,3346.6,3345.8,0.12104261]
[1721022749416,5.18212,3346.7,3345.8,0.12104261]
[1721022749658,1.03469789,3346.6,3345.8,0.12104261]
[1721022749952,3.0,3346.8,3346.2,2.68961]
[1721022750132,1.03462218,3346.7,3346.3,0.06112944]
[1721022750333,3.0,3346.8,3346.3,0.06112944]
[1721022750546,3.0,3346.8,3346.3,2.75063944]
[1721022751358,4.94724281,3346.9,3346.4,2.68945]
[1721022751567,1.03456653,3346.8,3346.6,2.4369]
[1721022751735,4.94724281,3346.9,3346.7,2.750225]
[1721022752061,4.94724281,3347.4,3346.7,0.061015]
[1721022752234,1.03449748,3347.3,3346.7,0.061015]
[1721022752434,1.03449748,3347.2,3346.6,2.68929]
[1721022752639,1.03449748,3347.3,3346.8,0.0609864]
[1721022752946,1.03449748,3347.2,3346.5,2.68931]
[1721022753121,1.03449748,3347.1,3346.6,0.06104361]
[1721022753444,3.0,3347.3,3346.6,0.06104361]
[1721022753761,1.03445967,3347.2,3346.7,2.68919]
[1721022753962,3.0,3347.3,3346.8,0.06092442]
[1721022754124,1.03445986,3347.2,3346.8,0.06092442]
[1721022754320,3.0,3347.3,3346.8,0.06092442]
[1721022754556,1.03446685,3347.2,3346.8,0.06092442]
[1721022754747,3.0,3347.3,3346.8,0.06092442]
[1721022755334,1.03447732,3347.2,3346.6,2.68929]
[1721022755556,3.0,3347.3,3346.4,2.68941]
[1721022755766,1.03449756,3347.2,3346.4,2.68941]
[1721022755929,3.0,3347.3,3346.5,0.06087079]
[1721022756136,1.03450975,3347.2,3346.5,0.06087079]
[1721022756454,3.0,3347.3,3346.5,0.06087079]
[1721022756645,1.03451045,3347.2,3346.5,0.06087079]
[1721022756834,3.0,3347.3,3346.5,0.06087079]
[1721022757032,1.03451267,3347.2,3346.5,0.06087079]
[1721022757248,3.0,3347.3,3346.5,0.06087079]
[1721022757467,1.03452298,3347.2,3346.5,0.06087079]
[1721022757772,3.0,3347.3,3346.5,0.06087079]
[1721022757925,1.03452508,3347.2,3346.5,0.06087079]
[1721022758124,3.0,3347.3,3346.5,0.06087079]
[1721022758331,1.03452495,3347.2,3346.5,0.06087079]
[1721022758642,3.0,3347.3,3346.5,0.06087079]
[1721022758824,1.03451568,3347.2,3346.5,0.06087079]
[1721022759027,3.0,3347.3,3346.5,0.06087079]
[1721022759233,1.03451889,3347.2,3346.5,0.06087079]
[1721022759430,3.0,3347.3,3346.5,0.06087079]
[1721022759677,1.03452479,3347.2,3346.5,2.75023079]
[1721022759835,3.0,3347.3,3346.5,2.75023079]
[1721022760378,1.03452082,3347.2,3346.5,0.06087079]
[1721022760550,3.0,3347.3,3346.3,2.68948]
[1721022760860,1.0345445,3347.2,3346.4,0.0609025]
[1721022761063,3.0,3347.3,3346.4,2.7503425]
[1721022761274,1.03453418,3347.2,3346.4,2.7503425]
[1721022761439,3.0,3347.3,3346.4,2.7503425]
[1721022762041,1.03452905,3347.2,3346.4,0.0609025]
[1721022762271,1.43591519,3347.2,3346.4,0.0609025]
[1721022762574,4.12474519,3347.2,3346.2,2.4971]
[1721022762782,4.12474519,3347.2,3346.3,0.06093266]
[1721022763335,3.0,3347.3,3346.3,2.75046266]
[1721022763765,5.68873,3347.3,3346.3,2.75046266]
[1721022764144,0.32555244,3347.2,3346.3,2.75046266]
[1721022764769,5.68873,3347.3,3346.4,2.68944]
[1721022764770,3.0,3347.3,3346.4,2.68944]
[1721022765071,3.0,3347.3,3346.5,0.06088164]
[1721022765317,0.32555077,3347.2,3346.5,0.06088164]
[1721022766048,5.68876,3347.3,3346.5,0.06088164]
[1721022767044,5.68876,3347.3,3346.6,2.2917]
[1721022767045,3.0,3347.3,3346.6,2.2917]
[1721022767246,3.0,3347.3,3346.8,2.68908]
[1721022767792,3.0,3347.3,3346.9,0.06076721]
[1721022768263,3.0,3347.3,3347.0,2.68894]
[1721022768735,3.0,3347.3,3347.1,0.06071154]
[1721022768941,3.0,3347.3,3347.0,2.68894]
[1721022769169,3.0,3347.3,3347.1,0.06071154]
[1721022769339,3.0,3347.3,3346.9,2.68903]
[1721022769536,3.0,3347.3,3347.0,0.06074014]
[1721022769773,1.03448904,3347.2,3346.7,2.68916]
[1721022769980,1.03448904,3347.2,3346.8,2.68911]
[1721022770190,3.0,3347.3,3346.8,2.74990735]
[1721022771278,1.03446799,3347.2,3346.8,2.74990735]
[1721022771605,3.0,3347.3,3346.8,2.74990735]
[1721022771742,1.03446181,3347.2,3346.8,2.74992735]
[1721022771942,3.0,3347.3,3346.8,2.74992735]
[1721022772180,1.03446243,3347.2,3346.8,2.74992735]
[1721022772367,3.0,3347.3,3346.8,2.74992735]
[1721022772545,1.03445921,3347.2,3346.8,2.74992735]
[1721022772745,3.0,3347.3,3346.8,2.74992735]
[1721022772960,1.03446502,3347.2,3346.8,2.74992735]
[1721022773166,3.0,3347.3,3346.8,2.74992735]
[1721022773462,1.0344579,3347.2,3346.8,2.74992735]
[1721022773661,3.0,3347.3,3346.8,2.74992735]
[1721022773874,1.03445534,3347.2,3346.8,2.74992735]
[1721022774203,3.0,3347.3,3346.8,2.74992735]
[1721022774361,1.03445152,3347.2,3346.8,2.74992735]
[1721022774560,3.0,3347.3,3346.8,2.74992735]
[1721022774961,1.03445933,3347.2,3346.8,0.06079735]
[1721022775264,6.27858455,3347.3,3346.4,2.68943]
[1721022775265,1.03448399,3347.1,3346.4,2.68943]
[1721022775465,5.3589,3347.3,3346.9,0.06076875]
[1721022775685,1.0345115,3347.2,3346.4,2.68943]
[1721022775862,1.0345115,3347.1,3347.0,0.06074014]
[1721022776193,1.0345115,3347.1,3346.4,2.68943]
[1721022776399,5.3589,3347.3,3346.5,0.06088317]
[1721022776614,1.0344864,3347.2,3346.5,0.06088317]
[1721022776899,1.0344864,3347.1,3346.5,0.06088317]
[1721022777058,1.0344864,3347.2,3346.5,0.06088317]
[1721022777256,2.83134759,3347.2,3346.5,0.06088317]
[1721022777457,1.0344864,3347.1,3346.3,3.00200618]
[1721022777694,1.0344864,3347.1,3346.6,0.06085456]
[1721022777919,1.0344864,3347.1,3346.3,3.00200618]
[1721022778113,1.03457271,3347.0,3346.7,0.06078258]
[1721022778414,1.03457271,3346.9,3346.8,0.06075398]
[1721022778631,1.03457271,3347.0,3346.8,0.06075398]
[1721022778784,1.03457271,3346.9,3346.3,0.31256283]
[1721022778980,1.03457271,3347.0,3346.4,0.06086841]
[1721022779728,0.04569152,3346.9,3346.4,0.06086841]
[1721022779879,2.3596,3346.7,3346.4,0.06086841]
[1721022780081,1.08026423,3346.6,3346.4,0.06086841]
[1721022780299,1.35995887,3346.5,3346.0,0.31262437]
[1721022780503,1.03457271,3346.4,3346.0,0.31262437]
[1721022780837,5.68934,3346.6,3346.1,0.05900717]
[1721022780838,2.68938,3346.5,3346.1,0.05900717]
[1721022780989,1.03472575,3346.3,3346.1,0.05900717]
[1721022781198,3.88824727,3346.5,3346.1,0.05900717]
[1721022781199,1.03472575,3346.2,3346.1,0.05900717]
[1721022781594,1.03472575,3346.4,3346.1,0.05900717]
[1721022781807,1.03472575,3346.4,3346.0,0.31262437]
[1721022782237,1.03472575,3346.4,3345.6,2.69009]
[1721022782832,1.03472575,3346.4,3345.7,0.05921772]
[1721022783309,1.03472575,3346.4,3345.6,2.69009]
[1721022783643,1.03472575,3346.4,3345.7,0.05921772]
[1721022783833,2.68938,3346.5,3345.7,0.05921772]
[1721022784041,1.03475265,3346.4,3345.6,2.69009]
[1721022784244,2.68938,3346.5,3345.8,0.0591891]
[1721022784539,1.03475362,3346.4,3345.7,0.05921772]
[1721022784832,2.68938,3346.5,3345.8,0.0591891]
[1721022785028,1.03476834,3346.4,3345.8,0.0591891]
[1721022785239,2.68938,3346.5,3345.6,2.69009]
[1721022785398,1.3593783,3346.4,3345.6,2.69009]
[1721022785592,2.68938,3346.5,3345.7,0.05921772]
[1721022785929,1.35921753,3346.4,3345.7,0.05921772]
[1721022786148,2.68938,3346.5,3345.7,0.05921772]
[1721022786344,1.3593067,3346.4,3345.7,0.05921772]
[1721022786504,2.68938,3346.5,3345.6,2.69009]
[1721022786698,0.32449542,3346.4,3345.8,0.0592015]
[1721022787010,1.35928512,3346.4,3345.6,2.69009]
[1721022787322,2.68938,3346.5,3345.6,2.69009]
[1721022787529,1.35948673,3346.4,3345.7,0.05923012]
[1721022787833,0.32492159,3346.3,3345.8,0.0592015]
[1721022788054,0.7261927,3346.3,3345.8,0.0592015]
[1721022788238,0.7261927,3346.3,3345.0,2.69053]
[1721022788239,2.6898,3346.0,3345.0,2.69053]
[1721022788412,0.37061541,3345.9,3345.0,2.69053]
[1721022788609,1.35992172,3345.8,3345.1,0.05953359]
[1721022788853,0.32494783,3345.7,3345.1,0.05953359]
[1721022789021,6.98317694,3345.9,3345.0,2.69053]
[1721022789353,6.98317694,3345.9,3344.8,2.69071]
[1721022789354,4.04999888,3345.8,3344.8,2.69071]
[1721022789530,0.37072639,3345.7,3344.8,2.69071]
[1721022789851,0.32494223,3345.6,3344.9,0.05959086]
[1721022790244,0.32494223,3345.6,3344.8,2.69071]
[1721022790447,3.0,3345.7,3345.0,2.69055]
[1721022790642,1.63580621,3345.9,3345.0,2.69055]
[1721022790643,3.0,3345.9,3345.0,2.69055]
[1721022790956,5.68986,3345.9,3345.1,0.05960335]
[1721022792820,3.0,3345.9,3345.1,0.05960335]
[1721022793029,3.0,3346.0,3345.1,0.05960335]
[1721022793345,5.68978,3346.0,3345.1,0.05960335]
[1721022793931,7.71380132,3346.0,3345.1,0.05960335]
[1721022794132,7.71380132,3346.0,3345.0,2.69055]
[1721022794583,5.68978,3346.0,3345.1,0.05963436]
[1721022794733,5.68978,3346.0,3345.1,2.75012436]
[1721022795874,2.68989,3345.9,3345.2,0.31278403]
[1721022796046,3.0,3345.8,3345.2,0.31278403]
[1721022796368,3.0,3345.8,3345.3,0.05957709]
[1721022796699,3.568989,3345.8,3345.2,0.31278403]
[1721022796845,3.568989,3345.8,3345.4,0.05954847]
[1721022797053,3.568989,3345.8,3345.3,0.05957709]
[1721022797250,3.568989,3345.8,3345.2,0.31278403]
[1721022797474,3.0,3345.8,3345.4,0.05954847]
[1721022797772,2.68979,3346.0,3345.2,0.31278403]
[1721022797978,3.0,3345.9,3345.2,0.31278403]
[1721022798283,0.04569152,3345.8,3345.3,0.05958795]
[1721022798449,0.57356215,3345.7,3345.3,0.05958795]
[1721022798640,0.57356215,3345.7,3345.2,0.31278403]
[1721022798641,3.57356215,3345.7,3345.2,0.31278403]
[1721022798982,3.04569152,3345.6,3345.3,0.05969958]
[1721022799150,3.04569152,3345.6,3345.2,0.31278403]
[1721022799151,7.85035152,3345.6,3345.2,0.31278403]
[1721022799354,3.0,3345.5,3344.5,2.69095]
[1721022799555,0.04569152,3345.4,3344.6,0.37072566]
[1721022799760,3.28602152,3345.4,3344.6,0.37072566]
[1721022799958,2.69051,3345.1,3344.6,0.37072566]
[1721022800278,2.4795,3345.0,3344.6,0.37072566]
[1721022800787,2.4795,3345.0,3344.6,0.31282454]
[1721022801393,0.04569152,3344.9,3343.9,5.09994]
[1721022801580,2.73636152,3344.9,3343.9,5.09994]
[1721022801902,2.69083,3344.7,3344.3,0.31266517]
[1721022802759,3.0,3344.6,3344.3,0.31266517]
[1721022802971,3.0,3344.8,3344.3,0.31266517]
[1721022803297,3.0,3345.1,3344.4,0.05795841]
[1721022803598,3.0,3345.1,3344.4,2.74895841]
[1721022803911,5.69051,3345.1,3344.4,0.05795841]
[1721022804802,3.0,3345.1,3344.4,0.05795841]
[1721022805105,3.0,3345.1,3344.5,2.69092]
[1721022805461,3.0,3345.1,3344.6,0.05790112]
[1721022806005,3.0,3345.1,3344.7,0.05787248]
[1721022806166,3.0,3345.1,3344.3,3.00380517]
[1721022806563,3.0,3345.1,3344.4,0.05795841]
[1721022807805,2.3383,3344.9,3344.4,0.05795841]
[1721022808012,2.69083,3344.7,3344.4,0.05795841]
[1721022808215,3.0,3344.6,3344.1,0.3126806]
[1721022808385,3.0,3344.6,3344.2,0.0580157]
[1721022808709,0.832083,3344.5,3344.1,0.3126806]
[1721022808875,5.69091,3344.6,3344.1,0.3126806]
[1721022809077,5.69091,3344.6,3344.2,0.0580157]
[1721022809782,0.04569152,3344.5,3344.2,0.0580157]
[1721022810741,2.73668152,3344.5,3344.2,0.0580157]
[1721022811021,5.69095,3344.6,3344.2,0.0580157]
[1721022811230,1.10117,3344.5,3344.2,0.0580157]
[1721022812035,1.14686152,3344.5,3344.2,0.0580157]
[1721022812326,3.83791152,3344.5,3344.2,0.0580157]
[1721022812540,5.38228,3344.3,3344.2,0.0580157]
[1721022812834,5.38228,3344.3,3343.1,2.2979]
[1721022812835,2.69122,3344.2,3343.1,2.2979]
[1721022812994,2.69147,3343.9,3343.6,0.31274232]
[1721022813345,2.69147,3343.9,3343.7,0.05834043]
[1721022813721,2.69147,3343.9,3343.4,0.31275262]
[1721022814026,2.69147,3343.9,3343.5,0.05839775]
[1721022815022,2.69131,3344.1,3343.5,0.05839775]
[1721022815224,6.24141,3344.0,3343.5,0.05839775]
[1721022815733,2.69148,3343.9,3343.5,0.05839775]
[1721022815908,3.73631241,3343.9,3343.5,0.05839775]
[1721022816113,3.73631241,3343.9,3343.4,0.31275262]
[1721022816341,3.73631241,3343.9,3343.6,0.05836909]
[1721022816626,3.73631241,3343.9,3343.4,0.31275262]
[1721022817129,2.69155,3343.8,3343.5,0.05839775]
[1721022817331,2.6917,3343.6,3343.5,0.05839775]
[1721022817698,2.6917,3343.6,3343.0,0.31278296]
[1721022817699,2.69184,3343.5,3343.0,0.31278296]
[1721022818049,2.69184,3343.5,3343.1,0.05851241]
[1721022818196,5.6917,3343.7,3343.1,0.05851241]
[1721022818197,3.0,3343.7,3343.1,0.05851241]
[1721022820112,5.2704,3343.8,3343.1,0.05851241]
[1721022820712,3.0,3343.8,3343.1,0.05851241]
[1721022820916,7.63855281,3344.1,3343.3,2.69195]
[1721022820917,4.94724281,3344.1,3343.3,2.69195]
[1721022821137,4.94724281,3344.1,3343.2,2.4899]
[1721022821338,4.94724281,3344.1,3343.4,0.05869637]
[1721022821506,4.94724281,3344.1,3343.3,2.69194]
[1721022821709,4.94724281,3344.1,3343.5,0.05866771]
[1721022821934,4.94724281,3344.1,3343.4,2.75055637]
[1721022822166,4.94724281,3344.1,3343.6,0.05863905]
[1721022822347,4.94724281,3344.1,3343.5,0.05866771]
[1721022822526,4.94724281,3344.1,3343.4,2.69186]
[1721022822527,3.0,3344.0,3343.7,0.05861039]
[1721022822731,3.0,3344.0,3343.6,0.05863905]
[1721022822951,3.0,3344.2,3343.8,0.05858173]
[1721022823278,2.3574,3344.1,3343.9,0.05855308]
[1721022823565,2.69138,3344.0,3343.9,0.05855308]
[1721022823852,6.24138,3344.0,3343.0,0.31278296]
[1721022824054,2.69138,3344.0,3343.0,0.31278296]
[1721022824257,2.69138,3344.0,3343.1,0.0588367]
[1721022824567,2.69147,3343.9,3343.1,0.0588367]
[1721022827860,2.69178,3343.6,3343.1,0.0588367]
[1721022828076,3.82374715,3343.5,3343.1,0.0588367]
[1721022828248,6.51553715,3343.5,3343.1,0.0588367]
[1721022828454,6.24179,3343.5,3343.1,0.0588367]
[1721022828644,2.2567,3343.4,3343.1,0.0588367]
[1721022829027,0.04569152,3343.3,3343.1,0.0588367]
[1721022829484,5.73764152,3343.3,3343.1,0.0588367]
[1721022829643,5.73764152,3343.3,3342.8,0.31261619]
[1721022829644,2.69217,3343.1,3342.8,0.31261619]
[1721022829858,3.04569152,3343.0,3342.0,2.69297]
[1721022830041,3.04569152,3343.0,3342.6,0.31264054]
[1721022830236,2.4859,3342.9,3342.6,0.31264054]
[1721022830440,2.4859,3342.9,3341.9,2.4986]
[1721022830441,2.69251,3342.7,3341.9,2.4986]
[1721022830676,0.55,3342.8,3342.2,0.31266926]
[1721022830842,0.55,3343.0,3342.2,3.00549926]
[1721022831051,3.0,3343.1,3342.3,0.05983498]
[1721022831248,2.69179,3343.5,3342.5,2.4719]
[1721022831483,3.55,3343.4,3342.5,2.4719]
[1721022831800,6.24187,3343.4,3342.5,2.4719]
[1721022832100,3.55,3343.4,3342.5,5.16449]
[1721022832393,0.55,3343.4,3342.5,5.16449]
[1721022832960,3.24188,3343.4,3342.6,0.05909961]
[1721022833537,3.0,3343.3,3342.6,0.05909961]
[1721022833745,4.95302,3343.0,3342.6,0.05909961]
[1721022834183,0.55,3342.9,3342.2,0.31266926]
[1721022834383,0.55,3342.9,3342.7,0.05916407]
[1721022834553,0.55,3342.9,3342.2,0.31266926]
[1721022834751,2.69263,3342.5,3342.2,0.31266926]